fUSD/lending_fUSD_20240216
["ID","MTS","AMOUNT","RATE_DAILY","PERIOD"]
[314171796,1708042134284,-250.0,0.0003465,111]
[314171797,1708042134311,-350.0,0.00034954,10]
[314171806,1708042227613,-300.0,0.00034954,10]
[314171821,1708042232442,-351.89314612,0.00033423,2]
[314171831,1708042238280,-556.23982462,0.00033423,2]
[314171832,1708042238289,-3.04189501,0.00033423,4]
[314171833,1708042238303,-151.95810499,0.00033423,4]
[314171834,1708042238312,-691.82408667,0.00033423,4]
[314171835,1708042238321,-279.45576881,0.00033424,2]
[314171836,1708042238334,-213.05423119,0.00033424,2]
[314171837,1708042238343,-80.19446567,0.00034433,2]
[314171838,1708042238356,-485.89553433,0.00034433,2]
[314171839,1708042238365,-230.64386491,0.00034464,2]
[314171840,1708042238377,-549.30613509,0.00034464,2]
[314171841,1708042238386,-1000.0,0.00034516,2]
[314171842,1708042238396,-198.96,0.00034627,2]
[314171843,1708042238405,-500.0,0.00034807,2]
[314171844,1708042238414,-180.32641181,0.00034854,2]
[314171845,1708042238423,-118.30148193,0.00034954,10]
[314171846,1708042238433,-43158.98819384,0.00034954,10]
[314171847,1708042238442,-191.60846217,0.00034954,4]
[314171848,1708042238451,-4147.53872588,0.00034962,10]
[314171849,1708042238461,-1336.0,0.00035,2]
[314171850,1708042238472,-157.81,0.00035028,2]
[314171851,1708042238481,-632.33,0.00035058,2]
[314171852,1708042238490,-157.39,0.00035077,2]
[314171853,1708042238500,-2000.0,0.00035105,2]
[314171854,1708042238509,-499.99,0.00035105,2]
[314171855,1708042238520,-2100.66159963,0.00035111,5]
[314171856,1708042238529,-216.81,0.0003513,2]
[314171857,1708042238538,-250.0,0.00035142,2]
[314171858,1708042238547,-1276.0,0.00035394,2]
[314171859,1708042238556,-861.17017969,0.00035399,4]
[314171860,1708042238565,-157.39,0.00035428,2]
[314171861,1708042238575,-161.76,0.00035456,2]
[314171862,1708042238584,-165.69,0.00035638,2]
[314171863,1708042238593,-492.51,0.00035688,2]
[314171864,1708042238602,-157.39,0.00035779,2]
[314171865,1708042238612,-6523.1743,0.000358,2]
[314171866,1708042238621,-34366.32811282,0.000359,2]
[314171868,1708042238630,-2590.01496333,0.000359,2]
[314171870,1708042238639,-159902.63736936,0.00036,2]
[314171872,1708042238648,-800.0,0.00036,2]
[314171874,1708042238657,-566.09,0.00036077,2]
[314171876,1708042238666,-158.06,0.0003609,2]
[314171878,1708042238675,-157.39,0.0003613,2]
[314171879,1708042238684,-160.01,0.00036134,2]
[314171881,1708042238693,-150.0,0.0003623,2]
[314171883,1708042238702,-3547.91,0.00036296,5]
[314171885,1708042238712,-168.62,0.00036377,2]
[314171887,1708042238722,-216.81,0.0003643,2]
[314171889,1708042238732,-157.39,0.00036481,2]
[314171891,1708042238741,-421.6,0.00036521,2]
[314171893,1708042238750,-1463.5784094,0.00036538,2]
[314171895,1708042238759,-158.06,0.00036692,2]
[314171898,1708042238769,-489.97894041,0.000367,2]
[314171900,1708042238778,-155.0,0.000367,2]
[314171902,1708042238788,-150.0,0.000367,20]
[314171904,1708042238797,-177.34,0.000367,2]
[314171906,1708042238807,-515.18351411,0.000367,2]
[314171908,1708042238817,-258.69,0.000367,30]
[314171910,1708042238826,-2061.49785918,0.000368,2]
[314171912,1708042238835,-15057.0,0.000368,3]
[314171913,1708042238844,-157.39,0.00036831,2]
[314171915,1708042238853,-258.69,0.00036837,30]
[314171917,1708042238863,-34366.32811273,0.00036878,2]
[314171919,1708042238872,-2590.01496332,0.00036878,2]
[314171921,1708042238881,-1574.05786419,0.000369,8]
[314171923,1708042238891,-1463.5784094,0.00036905,2]
[314171925,1708042238900,-258.69,0.00036974,30]
[314171927,1708042238910,-151.021627,0.00036998,4]
[314171929,1708042238919,-5000.0,0.00037,7]
[314171931,1708042238929,-563.0,0.00037,2]
[314171933,1708042238942,-134166.59095567,0.00037,2]
[314171935,1708042238951,-299.40455913,0.00037,2]
[314171937,1708042238960,-1463.5784094,0.00037085,2]
[314171938,1708042238969,-151.021627,0.00037098,24]
[314171939,1708042238979,-258.69,0.00037111,30]
[314171940,1708042238988,-157.39,0.00037182,2]
[314171941,1708042238997,-151.021627,0.00037198,25]
[314171942,1708042239006,-177.34,0.00037248,2]
[314171943,1708042239016,-258.69,0.00037248,30]
[314171944,1708042239027,-158.06,0.00037294,2]
[314171945,1708042239036,-234.021627,0.00037298,25]
[314171946,1708042239046,-234.021627,0.00037298,25]
[314171947,1708042239055,-234.021627,0.00037298,25]
[314171948,1708042239064,-161.76,0.00037303,2]
[314171950,1708042239074,-1463.5784094,0.00037332,2]
[314171952,1708042239084,-258.69,0.00037385,30]
[314171954,1708042239093,-234.021627,0.00037398,24]
[314171956,1708042239103,-234.021627,0.00037398,24]
[314171958,1708042239113,-234.021627,0.00037398,24]
[314171960,1708042239122,-234.021627,0.00037398,24]
[314171962,1708042239131,-150.36398041,0.00037402,2]
[314171964,1708042239139,-700.1232475,0.00037444,4]
[314171966,1708042239148,-155.0,0.00037449,4]
[314171968,1708042239157,-234.021627,0.00037498,25]
[314171970,1708042239166,-234.021627,0.00037498,25]
[314171972,1708042239176,-234.021627,0.00037498,25]
[314171975,1708042239185,-258.69,0.00037522,30]
[314171976,1708042239194,-157.39,0.00037533,2]
[314171979,1708042239203,-234.021627,0.00037598,24]
[314171981,1708042239213,-234.021627,0.00037598,24]
[314171983,1708042239222,-234.021627,0.00037598,24]
[314171985,1708042239231,-234.021627,0.00037598,24]
[314171987,1708042239240,-234.021627,0.00037598,24]
[314171988,1708042239249,-681.07160788,0.00037599,2]
[314171990,1708042239258,-152.97427392,0.00037599,2]
[314171992,1708042239269,-681.07160788,0.00037599,2]
[314171995,1708042239278,-681.07160788,0.000376,2]
[314171996,1708042239287,-681.07160788,0.000376,2]
[314171999,1708042239296,-177.1805209,0.000376,10]
[314172001,1708042239307,-17007.36114876,0.000376,10]
[314172002,1708042239316,-187.55259938,0.000376,10]
[314172004,1708042239325,-2283.99242945,0.000376,2]
[314172006,1708042239335,-681.07160788,0.000376,2]
[314172008,1708042239344,-5000.0,0.000376,3]
[314172010,1708042239353,-2910.75995959,0.000376,2]
[314172012,1708042239362,-908.58950588,0.000376,2]
[314172015,1708042239372,-685.81053017,0.000376,2]
[314172017,1708042239381,-172.40682476,0.000376,2]
[314172019,1708042239391,-152.0,0.00037667,7]
[314172021,1708042239401,-206.0,0.00037682,2]
[314172023,1708042239412,-192.79177757,0.0003769,2]
[314172025,1708042239421,-192.79177757,0.0003769,2]
[314172027,1708042239430,-192.79177757,0.0003769,2]
[314172029,1708042239440,-164.68203591,0.00037697,2]
[314172031,1708042239451,-1317.45628728,0.00037697,2]
[314172032,1708042239460,-833.42085763,0.00037698,7]
[314172035,1708042239471,-234.021627,0.00037698,25]
[314172037,1708042239480,-234.021627,0.00037698,25]
[314172038,1708042239490,-234.021627,0.00037698,25]
[314172041,1708042239500,-234.021627,0.00037698,25]
[314172043,1708042239509,-234.021627,0.00037698,25]
[314172045,1708042239520,-68153.0,0.00037699,4]
[314172047,1708042239529,-337.5518198,0.00037699,15]
[314172049,1708042239539,-500.0,0.00037699,15]
[314172051,1708042239549,-500.0,0.00037699,15]
[314172053,1708042239558,-500.0,0.00037699,15]
[314172055,1708042239567,-500.0,0.00037699,15]
[314172057,1708042239576,-500.0,0.00037699,15]
[314172059,1708042239586,-500.0,0.00037699,15]
[314172061,1708042239594,-648.23399187,0.00037699,15]
[314172062,1708042239604,-500.0,0.00037699,15]
[314172064,1708042239614,-500.0,0.00037699,15]
[314172067,1708042239624,-500.0,0.00037699,15]
[314172069,1708042239635,-500.0,0.00037699,15]
[314172071,1708042239644,-570.68878164,0.00037699,15]
[314172073,1708042239653,-500.0,0.00037699,15]
[314172074,1708042239663,-500.0,0.00037699,15]
[314172076,1708042239672,-500.0,0.00037699,15]
[314172078,1708042239682,-500.0,0.00037699,15]
[314172080,1708042239691,-500.0,0.00037699,15]
[314172082,1708042239702,-500.0,0.00037699,15]
[314172084,1708042239711,-500.0,0.00037699,15]
[314172086,1708042239722,-531627.51856901,0.00037699,3]
[314172088,1708042239732,-399.34786531,0.00037699,3]
[314172090,1708042239741,-2525371.2598663,0.000377,3]
[314172092,1708042239751,-424.37,0.000377,7]
[314172094,1708042239760,-566.09,0.00037721,2]
[314172096,1708042239769,-216.81,0.00037729,2]
[314172098,1708042239779,-175.50889775,0.00037735,4]
[314172100,1708042239788,-1888.71723664,0.00037735,4]
[314172102,1708042239797,-501.8363643,0.00037741,2]
[314172104,1708042239806,-1522.1695058,0.00037744,4]
[314172106,1708042239815,-2325.85179186,0.00037744,4]
[314172108,1708042239825,-1574.05786416,0.00037759,8]
[314172110,1708042239834,-501.8363643,0.00037762,2]
[314172112,1708042239843,-270.43329709,0.00037777,2]
[314172114,1708042239852,-501.8363643,0.00037782,2]
[314172116,1708042239861,-1463.5784094,0.00037786,2]
[314172118,1708042239869,-151.0,0.00037788,120]
[314172120,1708042239878,-353.98,0.00037796,2]
[314172123,1708042239888,-55555.0,0.000378,3]
[314172125,1708042239897,-501.8363643,0.00037802,2]
[314172126,1708042239906,-152.0,0.00037804,7]
[314172128,1708042239915,-34366.32811273,0.00037856,2]
[314172130,1708042239925,-2590.01496332,0.00037856,2]
[314172132,1708042239938,-157.39,0.00037884,2]
[314172135,1708042239947,-158.06,0.00037895,2]
[314172136,1708042239956,-645680.900134,0.000379,3]
[314172138,1708042239965,-3000.0,0.0003794,2]
[314172141,1708042239976,-152.0,0.00037941,7]
[314172143,1708042239985,-217.0,0.00037945,90]
[314172145,1708042239994,-151.0,0.00037945,90]
[314172146,1708042240004,-492.51,0.00037952,2]
[314172149,1708042240014,-1463.5784094,0.00037971,2]
[314172151,1708042240024,-150.0,0.00037989,2]
[314172153,1708042240033,-150.0,0.00037989,2]
[314172155,1708042240042,-64382.23859773,0.0003799,3]
[314172157,1708042240051,-12230.17974176,0.00038,7]
[314172159,1708042240065,-51373.31508536,0.00038,7]
[314172161,1708042240074,-10000.0,0.00038,10]
[314172163,1708042240084,-6244.64412963,0.00038,2]
[314172166,1708042240095,-10321.60454038,0.00038,2]
[314172168,1708042240105,-94770.40263119,0.00038,2]
[314172170,1708042240113,-155814.69123756,0.00038,2]
[314172173,1708042240134,-3844.39545516,0.00038,2]
[314172175,1708042240150,-6680.37562026,0.00038,2]
[314172178,1708042240161,-2817.60525576,0.00038,2]
[314172180,1708042240176,-1660.4002009,0.00038,2]
[314172183,1708042240187,-1543.32675736,0.00038,2]
[314172185,1708042240199,-759.4088244,0.00038,2]
[314172187,1708042240210,-741.27723955,0.00038,2]
[314172189,1708042240222,-420.8888349,0.00038,2]
[314172192,1708042240234,-313.89851893,0.00038,2]
[314172193,1708042240245,-15753.02688158,0.00038,2]
[314172195,1708042240256,-9970.48879102,0.00038,2]
[314172197,1708042240267,-1117.84487624,0.00038,2]
[314172199,1708042240278,-421.12043434,0.00038,2]
[314172202,1708042240295,-521.63355782,0.00038,2]
[314172204,1708042240307,-169959.56746788,0.00038,2]
[314172374,1708042241745,-416.94867565,0.00038,2]
[314172543,1708042243379,-1727.72238437,0.00038,2]
[314172803,1708042246348,-603.5255592,0.00038,2]
[314172995,1708043433352,-396.38842519,0.00032303,4]
[314172996,1708043433365,-295.43566148,0.00032303,4]
[314172997,1708043433375,-908.13297074,0.00032304,2]
[314172998,1708043433385,-205.0,0.00033682,2]
[314172999,1708043433394,-152.15237158,0.00034145,2]
[314173000,1708043433403,-1414.66,0.00034245,2]
[314173001,1708043433413,-250.0,0.00034245,111]
[314173002,1708043433423,-60.90744958,0.00034245,2]
[314173003,1708043433439,-222.13255042,0.00034245,2]
[314173004,1708043433449,-418.63,0.00034469,2]
[314173005,1708043433458,-155.0,0.00034976,4]
[314173006,1708043433467,-189.28919988,0.00034977,4]
[314173007,1708043433477,-150.0,0.00034977,2]
[314173008,1708043433486,-199.43102883,0.00034978,10]
[314173009,1708043433495,-445.48995493,0.00034978,10]
[314173010,1708043433508,-8225.32718594,0.00034978,10]
[314173011,1708043433522,-784.17302211,0.00034978,10]
[314173012,1708043433535,-584.20652084,0.00034978,10]
[314173013,1708043433547,-3969.97678967,0.00034978,10]
[314173014,1708043433561,-308.807424,0.00034978,10]
[314173015,1708043433583,-1288.64349942,0.00034978,10]
[314173016,1708043433642,-1406.82289289,0.00034978,10]
[314173031,1708043437393,-2875.8618501,0.00034978,10]
[314173032,1708043437402,-3112.8680788,0.00034986,10]
[314173033,1708043437413,-700.1232475,0.00035,4]
[314173034,1708043437422,-152.15237158,0.00035515,2]
[314173035,1708043437431,-499.99,0.00035889,2]
[314173036,1708043437441,-283.04,0.00035889,2]
[314173037,1708043437454,-1492.5795,0.000359,2]
[314173038,1708043437463,-1000.0,0.000359,2]
[314173039,1708043437472,-150.0,0.0003623,2]
[314173040,1708043437481,-23900.0,0.00036308,2]
[314173041,1708043437491,-250.0,0.00036324,2]
[314173042,1708043437500,-161.11,0.00036387,2]
[314173043,1708043437511,-800.0,0.00036459,2]
[314173044,1708043437521,-216.81,0.00036483,2]
[314173045,1708043437531,-200.0,0.00036505,2]
[314173046,1708043437541,-500.0,0.0003653,2]
[314173047,1708043437550,-150.0,0.00036547,2]
[314173048,1708043437561,-1000.0,0.000367,2]
[314173049,1708043437570,-418.63,0.00036733,2]
[314173050,1708043437581,-364.0,0.00036812,2]
[314173051,1708043437592,-152.15237158,0.00036886,2]
[314173052,1708043437603,-2020.0,0.000369,3]
[314173053,1708043437614,-157.38,0.00036965,2]
[314173054,1708043437624,-151.021624,0.00037298,17]
[314173055,1708043437634,-899.0,0.000373,2]
[314173056,1708043437643,-1332.24987063,0.000373,2]
[314173057,1708043437653,-361.84787979,0.000373,2]
[314173058,1708043437662,-563.28007404,0.000373,2]
[314173059,1708043437672,-1847.0,0.000373,2]
[314173060,1708043437682,-375.0,0.000373,2]
[314173061,1708043437691,-354.54,0.00037334,2]
[314173062,1708043437700,-150.0,0.00037356,2]
[314173063,1708043437709,-227.64625164,0.00037356,2]
[314173064,1708043437718,-150.0,0.00037356,2]
[314173065,1708043437731,-300.0,0.00037356,5]
[314173066,1708043437740,-151.021624,0.00037398,18]
[314173067,1708043437749,-1245.7525595,0.0003748,2]
[314173068,1708043437760,-151.021624,0.00037498,18]
[314173069,1708043437770,-283.04,0.00037533,2]
[314173070,1708043437780,-151.0,0.00037551,120]
[314173071,1708043437789,-151.021624,0.00037598,18]
[314173072,1708043437799,-200.0,0.00037696,3]
[314173074,1708043437809,-151.021624,0.00037698,24]
[314173076,1708043437818,-300.0,0.00037699,2]
[314173078,1708043437828,-300.0,0.00037699,2]
[314173080,1708043437837,-300.0,0.00037699,2]
[314173082,1708043437846,-300.0,0.00037699,2]
[314173084,1708043437855,-300.0,0.00037699,2]
[314173086,1708043437864,-206.69081168,0.00037784,2]
[314173088,1708043437873,-860.25729707,0.00037784,3]
[314173091,1708043437883,-151.021624,0.00037798,24]
[314173093,1708043437892,-2374.97726816,0.000378,3]
[314173095,1708043437902,-1245.7525595,0.00037804,2]
[314173096,1708043437911,-1809.65178705,0.00037808,3]
[314173099,1708043437920,-250.0052332,0.00037808,3]
[314173101,1708043437929,-200.71638524,0.00037808,3]
[314173103,1708043437939,-151.021624,0.00037898,18]
[314173104,1708043437949,-492.89387823,0.00037904,5]
[314173107,1708043437958,-151.021624,0.00037932,25]
[314173109,1708043437967,-151.021624,0.00037998,19]
[314173111,1708043437977,-21282.05490968,0.00038,2]
[314173112,1708043437987,-1508.79873285,0.00038,30]
[314173115,1708043437998,-191.60846217,0.00038,4]
[314173116,1708043438008,-2000.0,0.00038,2]
[314173119,1708043438018,-200.0,0.00038,2]
[314173121,1708043438029,-3000.0,0.00038,33]
[314173123,1708043438038,-2000.0,0.00038,2]
[314173125,1708043438049,-200.0,0.00038,2]
[314173127,1708043438058,-200.0,0.00038,2]
[314173128,1708043438068,-3000.0,0.0003801,34]
[314173129,1708043438077,-3000.0,0.0003802,34]
[314173130,1708043438087,-24056.42967892,0.00038025,2]
[314173131,1708043438097,-3000.0,0.0003803,34]
[314173132,1708043438106,-151.021624,0.00038032,25]
[314173133,1708043438116,-1253.6159212,0.00038035,8]
[314173134,1708043438126,-5618.159084,0.0003804,34]
[314173135,1708043438136,-151.021624,0.00038098,19]
[314173136,1708043438145,-32311.0319752,0.00038124,10]
[314173138,1708043438154,-9231.72342148,0.00038125,10]
[314173140,1708043438163,-151.021624,0.00038132,25]
[314173142,1708043438173,-8440.33545267,0.00038134,2]
[314173147,1708043438206,-2733.36764432,0.00038134,2]
[314173149,1708043438218,-10321.60454038,0.00038134,2]
[314173151,1708043438229,-5189.575,0.00038134,2]
[314173154,1708043438249,-982.59830346,0.00034245,2]
[314173369,1708043440271,-1017.40169654,0.00034245,2]
[314173372,1708043440285,-150.0,0.00037556,2]
[314173374,1708043440295,-1245.7525595,0.000376,2]
[314173376,1708043440304,-3000.0,0.00038,2]
[314173377,1708043440313,-13497.06544885,0.00038134,2]
[314173445,1708043441025,-381.00278135,0.00038134,2]
[314173733,1708043444143,-5573.74756247,0.00038134,2]
[314173759,1708043444383,-2374.97726816,0.00038134,2]
[314173866,1708043445420,-2550.0,0.00038134,2]
[314173867,1708043445478,-2195.83339887,0.00038134,2]
[314173868,1708043445489,-1115.02287949,0.00038134,2]
[314173869,1708043445502,-473.05077416,0.00038134,2]
[314173870,1708043445514,-495.06200404,0.00038134,2]
[314173871,1708043445526,-1578.22366048,0.00038134,2]
[314173872,1708043445537,-625.78784407,0.00038134,2]
[314173873,1708043445557,-690.60504577,0.00038134,2]
[314173874,1708043445607,-435.15276219,0.00038134,2]
[314173875,1708043445618,-972.17749933,0.00038134,2]
[314173876,1708043445630,-51412.94388268,0.00038134,2]
[314173877,1708043445641,-20055.07270493,0.00038134,2]
[314173878,1708043445652,-707.9,0.00038134,2]
[314173879,1708043445679,-768.0,0.00038134,2]
[314173880,1708043445690,-276.36,0.00038134,2]
[314173881,1708043445701,-10366.72579573,0.00038134,2]
[314173882,1708043445726,-3184.21839743,0.00038134,2]
[314173883,1708043445737,-31078.34226911,0.00038134,2]
[314173884,1708043445749,-4034.28612788,0.00038134,2]
[314173885,1708043445760,-1858.75316946,0.00038134,2]
[314173887,1708044579976,150.0,0.00030201,2]
[314173888,1708044579997,50.0,0.00030201,2]
[314173893,1708044635580,-908.13297074,0.00030676,2]
[314173894,1708044635590,-691.82408667,0.00030677,4]
[314173895,1708044635599,-205.0,0.00030682,2]
[314173896,1708044635609,-399.32,0.00032327,2]
[314173897,1708044635623,-155.0,0.0003368,4]
[314173898,1708044635633,-870.38393849,0.00033681,2]
[314173899,1708044635642,-155.98062293,0.00034145,2]
[314173900,1708044635651,-400.0,0.00034244,3]
[314173901,1708044635662,-1178.88,0.00034245,2]
[314173902,1708044635672,-181.22,0.00034245,2]
[314173903,1708044635681,-250.0,0.00034245,111]
[314173904,1708044635691,-940.68,0.00034245,2]
[314173905,1708044635701,-1503.87785565,0.00034245,2]
[314173908,1708044637793,-842.00419921,0.00033679,4]
[314173909,1708044637802,-496.12214435,0.00034245,2]
[314173910,1708044637811,-499.99,0.00034245,2]
[314173911,1708044637821,-216.81,0.00034521,2]
[314173912,1708044637830,-399.32,0.00034591,2]
[314173913,1708044637839,-5002.93965388,0.0003501,10]
[314173914,1708044637849,-2180.47,0.0003501,2]
[314173915,1708044637858,-12750.57240188,0.00035017,10]
[314173916,1708044637868,-1282.68539941,0.00035033,10]
[314173917,1708044637877,-10000.0,0.00035923,37]
[314173918,1708044637886,-273.13,0.00035972,2]
[314173919,1708044637896,-150.0,0.00036013,2]
[314173920,1708044637905,-250.0,0.00036086,2]
[314173921,1708044637914,-169.82,0.00036147,2]
[314173922,1708044637923,-161.11,0.0003616,2]
[314173923,1708044637932,-150.0,0.0003623,2]
[314173924,1708044637941,-640.0,0.00036286,2]
[314173925,1708044637950,-249.91,0.00036477,2]
[314173926,1708044637959,-205.0,0.00036546,13]
[314173927,1708044637969,-500.0,0.00036746,3]
[314173929,1708044637978,-399.32,0.00036855,2]
[314173931,1708044637987,-360.0,0.00036966,2]
[314173933,1708044637996,-1000.0,0.00037,2]
[314173935,1708044638005,-1506.78424076,0.00037,2]
[314173937,1708044638014,-13556.0,0.00037,3]
[314173939,1708044638023,-260.11464927,0.00037253,2]
[314173941,1708044638032,-250.0,0.00037356,2]
[314173942,1708044638042,-155.0,0.00037356,2]
[314173944,1708044638052,-2996.0,0.00037395,2]
[314173945,1708044638063,-151.0,0.00037494,120]
[314173946,1708044638074,-7840.29947448,0.00037531,2]
[314173947,1708044638085,-250.0,0.0003763,2]
[314173948,1708044638096,-151.021624,0.00037798,24]
[314173949,1708044638106,-187.3831661,0.00037826,3]
[314173950,1708044638116,-314.07739358,0.00037826,3]
[314173951,1708044638128,-200.0,0.00037829,3]
[314173952,1708044638138,-176.54758657,0.00037838,3]
[314173953,1708044638149,-174.36374623,0.00037838,3]
[314173954,1708044638159,-151.021624,0.00037898,24]
[314173955,1708044638169,-408.6582,0.000379,2]
[314173956,1708044638180,-250.0,0.00037904,2]
[314173957,1708044638190,-1843.04429852,0.00037924,2]
[314173958,1708044638200,-36091.48736933,0.00037934,2]
[314173959,1708044638222,-10803.58043067,0.00037934,2]
[314173960,1708044638231,-1132.77775141,0.00037978,8]
[314173961,1708044638242,-151.021624,0.00037998,25]
[314173962,1708044638252,-2488.13362663,0.00037998,2]
[314173963,1708044638261,-10000.0,0.00038,10]
[314173964,1708044638272,-324.6447,0.00038024,2]
[314173965,1708044638282,-41804.0305878,0.00038024,10]
[314173966,1708044638291,-199.67393266,0.00038034,3]
[314173967,1708044638300,-138025.42513621,0.00038034,2]
[314173968,1708044638312,-661.52496362,0.00038034,2]
[314173971,1708044640350,-506.7150002,0.00038034,2]
[314173991,1708044645647,-460.72145961,0.00038034,2]
[314173992,1708044645708,-2801.95332,0.00038034,2]
[314173993,1708044645772,-981.61370118,0.00038034,2]
[314173994,1708044645834,-508.76712882,0.00038034,2]
[314173996,1708044646647,100.0,0.00030201,4]
[314173997,1708044646672,91.60846217,0.00030201,4]
[314173998,1708044660656,58.39153783,0.00030201,4]
[314173999,1708044660677,133.21692434,0.00030201,4]
[314174000,1708044676654,88.00307566,0.00030201,4]
[314174001,1708044779631,839.28282081,0.000302,120]
[314174002,1708044817182,191.60846217,0.000302,4]
[314174003,1708044844527,204.0,0.00029682,2]
[314174004,1708044934140,191.60846217,0.0003,4]
[314174005,1708044952318,188.49008424,0.0003,4]
[314174030,1708045831757,-482.02538813,0.00032311,4]
[314174031,1708045831766,-252.6438322,0.00032312,4]
[314174032,1708045831814,-589.36036701,0.00032312,4]
[314174033,1708045831823,-691.82408667,0.00032313,4]
[314174034,1708045831832,-383.13,0.00032327,2]
[314174035,1708045831841,-192.12989157,0.000343,2]
[314174036,1708045831853,-158.05,0.00034502,2]
[314174037,1708045831862,-383.13,0.00034591,2]
[314174038,1708045831871,-153.71578538,0.0003494,2]
[314174039,1708045831881,-1636.55803637,0.00035,15]
[314174040,1708045831890,-153.87823294,0.0003504,10]
[314174041,1708045831899,-3281.69007811,0.0003504,10]
[314174042,1708045831908,-5737.75758085,0.0003504,10]
[314174043,1708045831920,-499.99,0.0003504,2]
[314174044,1708045831928,-157.39,0.0003512,2]
[314174045,1708045831937,-982.4,0.00035156,2]
[314174046,1708045831947,-250.0,0.00035222,111]
[314174047,1708045831956,-204.0,0.00035262,2]
[314174048,1708045831969,-158.05,0.00035401,2]
[314174049,1708045831979,-488.0,0.00035515,2]
[314174050,1708045831988,-153.71578538,0.00035532,2]
[314174051,1708045831997,-358.31,0.00035566,2]
[314174052,1708045832006,-250.0,0.00035742,2]
[314174053,1708045832016,-2000.0,0.00035818,2]
[314174054,1708045832025,-241.78,0.00035858,2]
[314174055,1708045832034,-216.83,0.00035898,2]
[314174056,1708045832045,-158.06,0.00035937,2]
[314174057,1708045832055,-512.0,0.00036015,2]
[314174058,1708045832064,-153.71578538,0.00036124,2]
[314174059,1708045832073,-285.05,0.0003623,2]
[314174060,1708045832083,-908.13297074,0.00036295,5]
[314174061,1708045832092,-158.05,0.000363,2]
[314174062,1708045832101,-1000.0,0.000364,2]
[314174063,1708045832110,-158.24,0.00036569,2]
[314174064,1708045832119,-353.98,0.000367,2]
[314174065,1708045832131,-153.71578538,0.00036715,2]
[314174066,1708045832141,-383.13,0.00036855,2]
[314174067,1708045832150,-500.0,0.000369,2]
[314174068,1708045832159,-1848.08125374,0.00037,2]
[314174069,1708045832170,-375.0,0.00037,2]
[314174070,1708045832179,-250.0,0.00037034,2]
[314174071,1708045832188,-298.01270489,0.00037086,2]
[314174072,1708045832198,-199.67393265,0.00037198,3]
[314174073,1708045832207,-258013.65206088,0.00037198,2]
[314174074,1708045832220,-92705.71375226,0.00037198,2]
[314174075,1708045832230,-155.0,0.00037199,4]
[314174076,1708045832240,-22912.20664723,0.000372,2]
[314174077,1708045832256,-2184.92386939,0.000372,2]
[314174078,1708045832266,-1894.2187656,0.000372,2]
[314174079,1708045832286,-469.50817967,0.000372,2]
[314174080,1708045832296,-2102.04579487,0.00037207,2]
[314174081,1708045832305,-1394.03600012,0.0003729,10]
[314174082,1708045832326,-544.16883991,0.0003729,10]
[314174083,1708045832337,-1952.54754142,0.0003729,10]
[314174084,1708045832350,-881.51369091,0.0003729,10]
[314174085,1708045832361,-447.46836519,0.0003729,10]
[314174086,1708045833398,-1777.03728473,0.0003729,10]
[314174124,1708045837855,-827.91845062,0.00035123,2]
[314174125,1708045838181,-1038.37154938,0.00035123,2]
[314174126,1708045838191,-205.0,0.00035262,2]
[314174127,1708045838200,-1866.29,0.00036422,2]
[314174128,1708045838210,-33356.91494712,0.0003729,10]
[314174129,1708045838219,-293.92420877,0.0003729,2]
[314174130,1708045838228,-3668.51696995,0.00037297,10]
[314174131,1708045838238,-151.021624,0.00037298,24]
[314174132,1708045838248,-501.8363643,0.00037298,2]
[314174133,1708045838258,-578.0074,0.000373,2]